Workbook

Sheet FILLABLE FORM
B1: North Hudson Sewerage Authority | H1: Introduction:
B2: Stormwater Storage Requrirements | H2: This calculator is the NHSA's stormwater detention requirements for the basic design of a stormwater storage system with connection to a downstream outlet control structure. The output includes the stormwater storage and the OCS maximum primary orifice size. The owner's engineer is responsible for meeting any state permitting requirements in addition to these requirements.
A5: A) Total Site Area | B5: 10000 | C5: (Square Feet)
H6: This tool is designed for sites less than 1 acre in area. If the site area is greater than 1 acre, contact NHSA to determine the stormwater control requirements. If the site is greater than 1 acre, this tool in not applicable.
A7: B) Impervious Site Area | B7: 10000 | C7: (Square Feet) | H7: The owner's Engineer shall determine the height of a control structure emergency overflow weir and is responsible certifying the Engineering Plan.
A8: =IF(B7>B5,"Impervious Areas Exceed Total Site Area, Calculations May Be Invalid","") -> 
A9: Green Infrastructure (GSI) Credits: | H9: If the site has greater than 10,000 square feet in area, an automatic valve is required. Contact NHSA for additional information.
A11: GSI Type | B11: GSI Area (Square Feet) | C11: % Credit | D11: Impervious Area Deductions (Square Feet)
A12: Porous Pavement | C12: =VLOOKUP(A12,DATA!A70:B75,2,0) -> 0.25 | D12: =IF(B12="","",B12*C12) ->  | H12: Fillable Form Instructions
A13: Green Roof | C13: =VLOOKUP(A13,DATA!A71:B76,2,0) -> 0.5 | D13: =IF(B13="","",B13*C13) -> 
A14: Blue Roof | C14: =VLOOKUP(A14,DATA!A72:B77,2,0) -> 0.6
A15: Permeable Pavers | C15: =VLOOKUP(A15,DATA!A73:B78,2,0) -> 0.25
A16: Bioswales / Rain Gardens | C16: 0.25 | H16: A) Include Total Site Area of the subject land parcel.
A17: Total | B17: =SUM(B12:B16) -> 0 | D17: =SUM(D12:D16) -> 0 | H17: B) Enter the total proposed impervious coverage on the site, including existing paved areas that are not impacted by the proposed construction. Grandfathering of existing imperivious area is not permitted.
A18: =IF(B17>B5,"Sum of GSI Areas Exceed Total Site Area, Calculations May Be Invalid","") -> 
A19: C) Revised Site Impervious Area | C19: =IF(B7="","",B7-(SUM(D12:D16))) -> 10000 | D19: (Square Feet) | H19: C) Green Infrastructure controls provide credit and reduce the storage system requirements. Provide the square foot area of any green infrastructure controls. Idenfify locations of all GI on the Engineering Site Plan and submit specifications.
A20: D) Percent Site Impervious Area | C20: =(C19/B5)*100 -> 100 | D20: (%)
A22: Approximate Detention Storag Size Required | D22: ='DATA ENTRY SHEET'!G21*7.48 -> 14802.92 | E22: (gallons) | H22: D and E) No Action needed.
A23: Allowable Depth of Storage | D23: ='DATA ENTRY SHEET'!G22 -> 3 | E23: (Feet)
A24: Approximate Detention Footprint | D24: ='DATA ENTRY SHEET'!G23 -> 659.6666667 | E24: (Square Feet) | H24: Calculator Output
A25: Primary Orifice Size | D25: =IF('DATA ENTRY SHEET'!G24<2.5,2.5,'DATA ENTRY SHEET'!G24) -> 2.5 | E25: (Inches) | H25: The gray shaded area outputs the site stormwater storage requirement, maximum storage depth, and maximum orifice size of the OCS.
A26: =IF(B5>10000,"Automated Valve Requirements for sites greater than or equal to 10,000 square feet",IF(B5=10000,"Automated Valve Requirements for sites greater than or equal to 10,000 square feet","")) -> Automated Valve Requirements for sites greater than or equal to 10,000 square feet
A27: dia | B27: =ROUND(D23*12,0) -> 36
A28: area1 | B28: =PI()*(D23^2)/4 -> 7.068583471
A29: len1 | B29: =ROUND(D22/7.48/B28,0) -> 280
A30: =IF(OR(A8<>"",A18<>""),"Check Input","If the Applicant Chooses Pipe Storage, This Site Will Require " & ROUND(B29, 0) & " Ft " & "of " & ROUND(B27,0) & " in Pipe") -> If the Applicant Chooses Pipe Storage, This Site Will Require 280 Ft of 36 in Pipe | H30: If the site has greater than or equal to 10,000 square feet in area, an automatic valve is required. Contact NHSA for additional information.
A31: NHSA Stormwater Storage Tool - Version 2.0

Sheet Sheet1

Sheet DATA ENTRY SHEET (hidden)
A1: NORTH HUDSON SEWERAGE AUTHORITY
A2: DETENTION VOLUME REQUIREMENT CALCULATOR
A4: INSTRUCTIONS:
A5: 1. ENABLE MACROS IN THE EXCEL SESSION.
A6: 2. USE THIS CALCULATOR FOR LOT SIZES FROM 0.05 ACRES UP TO 0.95 ACRES, AND BETWEEN 75-100% IMPERVIOUS.
A7: 3. ENTER LOT SIZE UNDER FIELD A.
A8: 4. ENTER % IMPERVIOUS COVERAGE FOR PROPOSED CONDITIONS UNDER FIELD B (BETWEEN 75-100%)
A9: 5. IF ANY GREEN INFRASTRUCTURE IS PROPOSED, INDICATE ON THIS SHEET TO GET STORAGE VOLUME CREDIT
A10: FIELD A: ENTER LOT SIZE IS ACRES | G10: =TRUNC((ROUND(('FILLABLE FORM'!B5/43560)/0.05,0)*0.05),2) -> 0.25
A11: FIELD B: ENTER % IMPERVIOUS UNDER PROPOSED CONDITIONS | G11: ='FILLABLE FORM'!C20 -> 100
A12: GREEN INFRASTRUCTURE CREDIT CALCULATIONS
A19: REVISED % IMPERVIOUS AFTER CREDIT | G19: ='FILLABLE FORM'!C20 -> 100
A20: CALCULATED DETENTION STORAGE SIZE REQUIRED, CU.FT | G20: =IF(AND(ISNUMBER(G10),ISNUMBER(G11)),ROUNDUP(((71.264*G19)+787.84)*G10,0),"") -> 1979
A21: APPROXIMATE DETENTION STORAGE SIZE REQUIRED, CU.FT | G21: =G22*G23 -> 1979
A22: ALLOWABLE DEPTH OF STORAGE (FT) | G22: =IF(AND(ISNUMBER(G10),ISNUMBER(G11)),VLOOKUP(G10,DATA!J27:S46,7,0),"") -> 3
A23: APPROXIMATE DETENTION FOOTPRINT, SQ.FT | G23: =IF(AND(ISNUMBER(G10),ISNUMBER(G11)),VLOOKUP(G10,DATA!J27:S46,9,0),"") -> 659.6666667
A24: ORIFICE SIZE (in) | G24: =IF(AND(ISNUMBER(G10),ISNUMBER(G11)),VLOOKUP(G10,DATA!J27:S46,3,0),"") -> 2

Sheet DATA (hidden)
A1: P (in) | B1: 3.3 | C1: HUDSON COUNTY 2-YEAR 24-HOUR RAINFALL
A2: Ia/S | B2: 0.2
A3: Tc (mins) | B3: 10
C4: EXISTING | H4: PROPOSED-75% IMPERVIOUS | W4: PROPOSED-85% IMPERVIOUS | AL4: PROPOSED-95% IMPERVIOUS | BA4: PROPOSED-100% IMPERVIOUS
A5: SCENARIO # | B5: LOT SIZE (AC) | C5: EXISTING CN | D5: EXISTING FLOW (CFS) | E5: S (in) | F5: Ia (in) | G5: EXISTING VOL (AC.FT) | H5: IP AREA (AC) | I5: IP AREA CN | J5: NON-IP AREA (AC) | K5: NON-IP AREA CN | L5: IP AREA FLOW (CFS) | M5: NON IP AREA FLOW (CFS) | N5: TOTAL FLOW (CFS) | O5: IP AREA S (in) | P5: IP AREA Ia (in) | Q5: IP AREA VOL (AC.FT) | R5: NON-IP AREA S (in) | S5: NON-IP AREA Ia (in) | T5: NON-IP AREA VOL (AC.FT) | U5: TOTAL VOLUME (AC.FT) | V5: VOLUME DIFF (CU.FT) | W5: IP AREA (AC) | X5: IP AREA CN | Y5: NON-IP AREA (AC) | Z5: NON-IP AREA CN | AA5: IP AREA FLOW (CFS) | AB5: NON IP AREA FLOW (CFS) | AC5: TOTAL FLOW (CFS) | AD5: IP AREA S (in) | AE5: IP AREA Ia (in) | AF5: IP AREA VOL (AC.FT) | AG5: NON IP AREA S (in) | AH5: NON IP AREA Ia (in) | AI5: NON-IP AREA VOL (AC.FT) | AJ5: TOTAL VOLUME (AC.FT) | AK5: VOLUME DIFF (CU.FT) | AL5: IP AREA (AC) | AM5: IP AREA CN | AN5: NON-IP AREA (AC) | AO5: NON-IP AREA CN | AP5: IP AREA FLOW (CFS) | AQ5: NON IP AREA FLOW (CFS) | AR5: TOTAL FLOW (CFS) | AS5: IP AREA S (in) | AT5: IP AREA Ia (in) | AU5: IP AREA VOL (AC.FT) | AV5: NON IP AREA S (in) | AW5: NON IP AREA Ia (in) | AX5: NON-IP AREA VOL (AC.FT) | AY5: TOTAL VOLUME (AC.FT) | AZ5: VOLUME DIFF (CU.FT) | BA5: IP AREA (AC) | BB5: IP AREA CN | BC5: NON-IP AREA (AC) | BD5: NON-IP AREA CN | BE5: IP AREA FLOW (CFS) | BF5: NON IP AREA FLOW (CFS) | BG5: TOTAL FLOW (CFS) | BH5: IP AREA S (in) | BI5: IP AREA Ia (in) | BJ5: IP AREA VOL (AC.FT) | BK5: NON IP AREA S (in) | BL5: NON IP AREA Ia (in) | BM5: NON-IP AREA VOL (AC.FT) | BN5: TOTAL VOLUME (AC.FT) | BO5: VOLUME DIFF (CU.FT)
A6: 1 | B6: 0.05 | C6: 70 | D6: 0.04 | E6: =(1000/C6)-10 -> 4.285714286 | F6: =$B$2*E6 -> 0.8571428571 | G6: =((IF(F6>$B$1,"",((($B$1-F6)^2)/($B$1+(0.8*E6)))))/12)*$B6 -> 0.003695404914 | H6: =0.75*$B6 -> 0.0375 | I6: 98 | J6: =$B6-H6 -> 0.0125 | K6: 74 | L6: 0.1 | M6: 0.01 | N6: =M6+L6 -> 0.11 | O6: =(1000/I6)-10 -> 0.2040816327 | P6: =$B$2*O6 -> 0.04081632653 | Q6: =((IF(P6>$B$1,"",((($B$1-P6)^2)/($B$1+(0.8*O6)))))/12)*H6 -> 0.009584775204 | R6: =(1000/K6)-10 -> 3.513513514 | S6: =$B$2*R6 -> 0.7027027027 | T6: =((IF(S6>$B$1,"",((($B$1-S6)^2)/($B$1+(0.8*R6)))))/12)*J6 -> 0.001149934903 | U6: =Q6+T6 -> 0.01073471011 | V6: =(U6-$G6)*43560 -> 306.6321342 | W6: =0.85*$B6 -> 0.0425 | X6: 98 | Y6: =$B6-W6 -> 0.0075 | Z6: 74 | AA6: 0.11 | AB6: 0.01 | AC6: =AA6+AB6 -> 0.12 | AD6: =(1000/X6)-10 -> 0.2040816327 | AE6: =$B$2*AD6 -> 0.04081632653 | AF6: =((IF(AE6>$B$1,"",((($B$1-AE6)^2)/($B$1+(0.8*AD6)))))/12)*W6 -> 0.01086274523 | AG6: =(1000/Z6)-10 -> 3.513513514 | AH6: =$B$2*AG6 -> 0.7027027027 | AI6: =((IF(AH6>$B$1,"",((($B$1-AH6)^2)/($B$1+(0.8*AG6)))))/12)*Y6 -> 0.0006899609417 | AJ6: =AF6+AI6 -> 0.01155270617 | AK6: =(AJ6-$G6)*43560 -> 342.2640428 | AL6: =0.95*$B6 -> 0.0475 | AM6: 98 | AN6: =$B6-AL6 -> 0.0025 | AO6: 74 | AP6: 0.13 | AQ6: 0.003 | AR6: =AP6+AQ6 -> 0.133 | AS6: =(1000/AM6)-10 -> 0.2040816327 | AT6: =$B$2*AS6 -> 0.04081632653 | AU6: =((IF(AT6>$B$1,"",((($B$1-AT6)^2)/($B$1+(0.8*AS6)))))/12)*AL6 -> 0.01214071526 | AV6: =(1000/AO6)-10 -> 3.513513514 | AW6: =$B$2*AV6 -> 0.7027027027 | AX6: =((IF(AW6>$B$1,"",((($B$1-AW6)^2)/($B$1+(0.8*AV6)))))/12)*AN6 -> 0.0002299869806 | AY6: =AU6+AX6 -> 0.01237070224 | AZ6: =(AY6-$G6)*43560 -> 377.8959515 | BA6: =1*$B6 -> 0.05 | BB6: 98 | BC6: =$B6-BA6 -> 0 | BD6: 74 | BE6: 0.14 | BF6: 0 | BG6: =BE6+BF6 -> 0.14 | BH6: =(1000/BB6)-10 -> 0.2040816327 | BI6: =$B$2*BH6 -> 0.04081632653 | BJ6: =((IF(BI6>$B$1,"",((($B$1-BI6)^2)/($B$1+(0.8*BH6)))))/12)*BA6 -> 0.01277970027 | BK6: =(1000/BD6)-10 -> 3.513513514 | BL6: =$B$2*BK6 -> 0.7027027027 | BM6: =((IF(BL6>$B$1,"",((($B$1-BL6)^2)/($B$1+(0.8*BK6)))))/12)*BC6 -> 0 | BN6: =BJ6+BM6 -> 0.01277970027 | BO6: =(BN6-$G6)*43560 -> 395.7119058
A7: 2 | B7: 0.1 | C7: 70 | D7: 0.08 | E7: =(1000/C7)-10 -> 4.285714286 | F7: =$B$2*E7 -> 0.8571428571 | G7: 0.007390809827 | H7: =0.75*$B7 -> 0.075 | I7: 98 | J7: =$B7-H7 -> 0.025 | K7: 74 | L7: 0.19 | M7: 0.03 | N7: =M7+L7 -> 0.22 | O7: =(1000/I7)-10 -> 0.2040816327 | P7: =$B$2*O7 -> 0.04081632653 | Q7: =((IF(P7>$B$1,"",((($B$1-P7)^2)/($B$1+(0.8*O7)))))/12)*H7 -> 0.01916955041 | R7: =(1000/K7)-10 -> 3.513513514 | S7: =$B$2*R7 -> 0.7027027027 | T7: =((IF(S7>$B$1,"",((($B$1-S7)^2)/($B$1+(0.8*R7)))))/12)*J7 -> 0.002299869806 | U7: =Q7+T7 -> 0.02146942021 | V7: =(U7-$G7)*43560 -> 613.2642684 | W7: =0.85*$B7 -> 0.085 | X7: 98 | Y7: =$B7-W7 -> 0.015 | Z7: 74 | AA7: 0.21 | AB7: 0.01 | AC7: =AA7+AB7 -> 0.22 | AD7: =(1000/X7)-10 -> 0.2040816327 | AE7: =$B$2*AD7 -> 0.04081632653 | AF7: =((IF(AE7>$B$1,"",((($B$1-AE7)^2)/($B$1+(0.8*AD7)))))/12)*W7 -> 0.02172549046 | AG7: =(1000/Z7)-10 -> 3.513513514 | AH7: =$B$2*AG7 -> 0.7027027027 | AI7: =((IF(AH7>$B$1,"",((($B$1-AH7)^2)/($B$1+(0.8*AG7)))))/12)*Y7 -> 0.001379921883 | AJ7: =AF7+AI7 -> 0.02310541234 | AK7: =(AJ7-$G7)*43560 -> 684.5280857 | AL7: =0.95*$B7 -> 0.095 | AM7: 98 | AN7: =$B7-AL7 -> 0.005 | AO7: 74 | AP7: 0.24 | AQ7: 0.005 | AR7: =AP7+AQ7 -> 0.245 | AS7: =(1000/AM7)-10 -> 0.2040816327 | AT7: =$B$2*AS7 -> 0.04081632653 | AU7: =((IF(AT7>$B$1,"",((($B$1-AT7)^2)/($B$1+(0.8*AS7)))))/12)*AL7 -> 0.02428143052 | AV7: =(1000/AO7)-10 -> 3.513513514 | AW7: =$B$2*AV7 -> 0.7027027027 | AX7: =((IF(AW7>$B$1,"",((($B$1-AW7)^2)/($B$1+(0.8*AV7)))))/12)*AN7 -> 0.0004599739611 | AY7: =AU7+AX7 -> 0.02474140448 | AZ7: =(AY7-$G7)*43560 -> 755.7919029 | BA7: =1*$B7 -> 0.1 | BB7: 98 | BC7: =$B7-BA7 -> 0 | BD7: 74 | BE7: 0.26 | BF7: 0 | BG7: =BE7+BF7 -> 0.26 | BH7: =(1000/BB7)-10 -> 0.2040816327 | BI7: =$B$2*BH7 -> 0.04081632653 | BJ7: =((IF(BI7>$B$1,"",((($B$1-BI7)^2)/($B$1+(0.8*BH7)))))/12)*BA7 -> 0.02555940054 | BK7: =(1000/BD7)-10 -> 3.513513514 | BL7: =$B$2*BK7 -> 0.7027027027 | BM7: =((IF(BL7>$B$1,"",((($B$1-BL7)^2)/($B$1+(0.8*BK7)))))/12)*BC7 -> 0 | BN7: =BJ7+BM7 -> 0.02555940054 | BO7: =(BN7-$G7)*43560 -> 791.4238116
A8: 3 | B8: 0.15 | C8: 70 | D8: 0.12 | E8: 4.285714286 | F8: 0.8571428571 | G8: 0.01108621474 | H8: 0.1125 | I8: 98 | J8: 0.0375 | K8: 74 | L8: 0.29 | M8: 0.04 | N8: 0.33 | O8: 0.2040816327 | P8: 0.04081632653 | Q8: 0.02875432561 | R8: 3.513513514 | S8: 0.7027027027 | T8: 0.003449804709 | U8: 0.03220413032 | V8: 919.8964026 | W8: 0.1275 | X8: 98 | Y8: 0.0225 | Z8: 74 | AA8: 0.32 | AB8: 0.03 | AC8: 0.35 | AD8: 0.2040816327 | AE8: 0.04081632653 | AF8: 0.03258823569 | AG8: 3.513513514 | AH8: 0.7027027027 | AI8: 0.002069882825 | AJ8: 0.03465811852 | AK8: 1026.792129 | AL8: 0.1425 | AM8: 98 | AN8: 0.0075 | AO8: 74 | AP8: 0.35 | AQ8: 0.01 | AR8: 0.36 | AS8: 0.2040816327 | AT8: 0.04081632653 | AU8: 0.03642214577 | AV8: 3.513513514 | AW8: 0.7027027027 | AX8: 0.0006899609417 | AY8: 0.03711210672 | AZ8: 1133.687854 | BA8: 0.15 | BB8: 98 | BC8: 0 | BD8: 74 | BE8: 0.37 | BF8: 0 | BG8: 0.37 | BH8: 0.2040816327 | BI8: 0.04081632653 | BJ8: 0.03833910081 | BK8: 3.513513514 | BL8: 0.7027027027 | BM8: 0 | BN8: 0.03833910081 | BO8: 1187.135717
A9: 4 | B9: 0.2 | C9: 70 | D9: 0.16 | E9: 4.285714286 | F9: 0.8571428571 | G9: 0.01478161965 | H9: 0.15 | I9: 98 | J9: 0.05 | K9: 74 | L9: 0.37 | M9: 0.05 | N9: 0.42 | O9: 0.2040816327 | P9: 0.04081632653 | Q9: 0.03833910081 | R9: 3.513513514 | S9: 0.7027027027 | T9: 0.004599739611 | U9: 0.04293884043 | V9: 1226.528537 | W9: 0.17 | X9: 98 | Y9: 0.03 | Z9: 74 | AA9: 0.43 | AB9: 0.03 | AC9: 0.46 | AD9: 0.2040816327 | AE9: 0.04081632653 | AF9: 0.04345098092 | AG9: 3.513513514 | AH9: 0.7027027027 | AI9: 0.002759843767 | AJ9: 0.04621082469 | AK9: 1369.056171 | AL9: 0.19 | AM9: 98 | AN9: 0.01 | AO9: 74 | AP9: 0.48 | AQ9: 0.01 | AR9: 0.49 | AS9: 0.2040816327 | AT9: 0.04081632653 | AU9: 0.04856286103 | AV9: 3.513513514 | AW9: 0.7027027027 | AX9: 0.0009199479223 | AY9: 0.04948280895 | AZ9: 1511.583806 | BA9: 0.2 | BB9: 98 | BC9: 0 | BD9: 74 | BE9: 0.49 | BF9: 0 | BG9: 0.49 | BH9: 0.2040816327 | BI9: 0.04081632653 | BJ9: 0.05111880109 | BK9: 3.513513514 | BL9: 0.7027027027 | BM9: 0 | BN9: 0.05111880109 | BO9: 1582.847623
A10: 5 | B10: 0.25 | C10: 70 | D10: 0.2 | E10: 4.285714286 | F10: 0.8571428571 | G10: 0.01847702457 | H10: 0.1875 | I10: 98 | J10: 0.0625 | K10: 74 | L10: 0.46 | M10: 0.07 | N10: 0.53 | O10: 0.2040816327 | P10: 0.04081632653 | Q10: 0.04792387602 | R10: 3.513513514 | S10: 0.7027027027 | T10: 0.005749674514 | U10: 0.05367355053 | V10: 1533.160671 | W10: 0.2125 | X10: 98 | Y10: 0.0375 | Z10: 74 | AA10: 0.53 | AB10: 0.04 | AC10: 0.57 | AD10: 0.2040816327 | AE10: 0.04081632653 | AF10: 0.05431372615 | AG10: 3.513513514 | AH10: 0.7027027027 | AI10: 0.003449804709 | AJ10: 0.05776353086 | AK10: 1711.320214 | AL10: 0.2375 | AM10: 98 | AN10: 0.0125 | AO10: 74 | AP10: 0.59 | AQ10: 0.01 | AR10: 0.6 | AS10: 0.2040816327 | AT10: 0.04081632653 | AU10: 0.06070357629 | AV10: 3.513513514 | AW10: 0.7027027027 | AX10: 0.001149934903 | AY10: 0.06185351119 | AZ10: 1889.479757 | BA10: 0.25 | BB10: 98 | BC10: 0 | BD10: 74 | BE10: 0.62 | BF10: 0 | BG10: 0.62 | BH10: 0.2040816327 | BI10: 0.04081632653 | BJ10: 0.06389850136 | BK10: 3.513513514 | BL10: 0.7027027027 | BM10: 0 | BN10: 0.06389850136 | BO10: 1978.559529
A11: 6 | B11: 0.3 | C11: 70 | D11: 0.24 | E11: 4.285714286 | F11: 0.8571428571 | G11: 0.02217242948 | H11: 0.225 | I11: 98 | J11: 0.075 | K11: 74 | L11: 0.56 | M11: 0.08 | N11: 0.64 | O11: 0.2040816327 | P11: 0.04081632653 | Q11: 0.05750865122 | R11: 3.513513514 | S11: 0.7027027027 | T11: 0.006899609417 | U11: 0.06440826064 | V11: 1839.792805 | W11: 0.255 | X11: 98 | Y11: 0.045 | Z11: 74 | AA11: 0.64 | AB11: 0.05 | AC11: 0.69 | AD11: 0.2040816327 | AE11: 0.04081632653 | AF11: 0.06517647138 | AG11: 3.513513514 | AH11: 0.7027027027 | AI11: 0.00413976565 | AJ11: 0.06931623703 | AK11: 2053.584257 | AL11: 0.285 | AM11: 98 | AN11: 0.015 | AO11: 74 | AP11: 0.72 | AQ11: 0.01 | AR11: 0.73 | AS11: 0.2040816327 | AT11: 0.04081632653 | AU11: 0.07284429155 | AV11: 3.513513514 | AW11: 0.7027027027 | AX11: 0.001379921883 | AY11: 0.07422421343 | AZ11: 2267.375709 | BA11: 0.3 | BB11: 98 | BC11: 0 | BD11: 74 | BE11: 0.75 | BF11: 0 | BG11: 0.75 | BH11: 0.2040816327 | BI11: 0.04081632653 | BJ11: 0.07667820163 | BK11: 3.513513514 | BL11: 0.7027027027 | BM11: 0 | BN11: 0.07667820163 | BO11: =(BN11-$G11)*43560 -> 2374.271435
A12: 7 | B12: 0.35 | C12: 70 | D12: 0.28 | E12: 4.285714286 | F12: 0.8571428571 | G12: 0.02586783439 | H12: 0.2625 | I12: 98 | J12: 0.0875 | K12: 74 | L12: 0.66 | M12: 0.09 | N12: 0.75 | O12: 0.2040816327 | P12: 0.04081632653 | Q12: 0.06709342642 | R12: 3.513513514 | S12: 0.7027027027 | T12: 0.00804954432 | U12: 0.07514297074 | V12: 2146.424939 | W12: 0.2975 | X12: 98 | Y12: 0.0525 | Z12: 74 | AA12: 0.75 | AB12: 0.05 | AC12: 0.8 | AD12: 0.2040816327 | AE12: 0.04081632653 | AF12: 0.07603921661 | AG12: 3.513513514 | AH12: 0.7027027027 | AI12: 0.004829726592 | AJ12: 0.08086894321 | AK12: 2395.8483 | AL12: 0.3325 | AM12: 98 | AN12: 0.0175 | AO12: 74 | AP12: 0.83 | AQ12: 0.02 | AR12: 0.85 | AS12: 0.2040816327 | AT12: 0.04081632653 | AU12: 0.0849850068 | AV12: 3.513513514 | AW12: 0.7027027027 | AX12: 0.001609908864 | AY12: 0.08659491567 | AZ12: 2645.27166 | BA12: 0.35 | BB12: 98 | BC12: 0 | BD12: 74 | BE12: 0.88 | BF12: 0 | BG12: 0.88 | BH12: 0.2040816327 | BI12: 0.04081632653 | BJ12: 0.0894579019 | BK12: 3.513513514 | BL12: 0.7027027027 | BM12: 0 | BN12: 0.0894579019 | BO12: 2769.983341
A13: 8 | B13: 0.4 | C13: 70 | D13: 0.32 | E13: 4.285714286 | F13: 0.8571428571 | G13: 0.02956323931 | H13: 0.3 | I13: 98 | J13: 0.1 | K13: 74 | L13: 0.75 | M13: 0.1 | N13: 0.85 | O13: 0.2040816327 | P13: 0.04081632653 | Q13: 0.07667820163 | R13: 3.513513514 | S13: 0.7027027027 | T13: 0.009199479223 | U13: 0.08587768085 | V13: 2453.057074 | W13: 0.34 | X13: 98 | Y13: 0.06 | Z13: 74 | AA13: 0.85 | AB13: 0.06 | AC13: 0.91 | AD13: 0.2040816327 | AE13: 0.04081632653 | AF13: 0.08690196185 | AG13: 3.513513514 | AH13: 0.7027027027 | AI13: 0.005519687534 | AJ13: 0.09242164938 | AK13: 2738.112343 | AL13: 0.38 | AM13: 98 | AN13: 0.02 | AO13: 74 | AP13: 0.94 | AQ13: 0.02 | AR13: 0.96 | AS13: 0.2040816327 | AT13: 0.04081632653 | AU13: 0.09712572206 | AV13: 3.513513514 | AW13: 0.7027027027 | AX13: 0.001839895845 | AY13: 0.09896561791 | AZ13: 3023.167612 | BA13: 0.4 | BB13: 98 | BC13: 0 | BD13: 74 | BE13: 1.01 | BF13: 0 | BG13: 1.01 | BH13: 0.2040816327 | BI13: 0.04081632653 | BJ13: 0.1022376022 | BK13: 3.513513514 | BL13: 0.7027027027 | BM13: 0 | BN13: 0.1022376022 | BO13: 3165.695246
A14: 9 | B14: 0.45 | C14: 70 | D14: 0.35 | E14: 4.285714286 | F14: 0.8571428571 | G14: 0.03325864422 | H14: 0.3375 | I14: 98 | J14: 0.1125 | K14: 74 | L14: 0.85 | M14: 0.12 | N14: 0.97 | O14: 0.2040816327 | P14: 0.04081632653 | Q14: 0.08626297683 | R14: 3.513513514 | S14: 0.7027027027 | T14: 0.01034941413 | U14: 0.09661239096 | V14: 2759.689208 | W14: 0.3825 | X14: 98 | Y14: 0.0675 | Z14: 74 | AA14: 0.95 | AB14: 0.07 | AC14: 1.02 | AD14: 0.2040816327 | AE14: 0.04081632653 | AF14: 0.09776470708 | AG14: 3.513513514 | AH14: 0.7027027027 | AI14: 0.006209648475 | AJ14: 0.1039743556 | AK14: 3080.376386 | AL14: 0.4275 | AM14: 98 | AN14: 0.0225 | AO14: 74 | AP14: 1.07 | AQ14: 0.03 | AR14: 1.1 | AS14: 0.2040816327 | AT14: 0.04081632653 | AU14: 0.1092664373 | AV14: 3.513513514 | AW14: 0.7027027027 | AX14: 0.002069882825 | AY14: 0.1113363201 | AZ14: 3401.063563 | BA14: 0.45 | BB14: 98 | BC14: 0 | BD14: 74 | BE14: 1.12 | BF14: 0 | BG14: 1.12 | BH14: 0.2040816327 | BI14: 0.04081632653 | BJ14: 0.1150173024 | BK14: 3.513513514 | BL14: 0.7027027027 | BM14: 0 | BN14: 0.1150173024 | BO14: 3561.407152
A15: 10 | B15: 0.5 | C15: 70 | D15: 0.39 | E15: 4.285714286 | F15: 0.8571428571 | G15: 0.03695404914 | H15: 0.375 | I15: 98 | J15: 0.125 | K15: 74 | L15: 0.94 | M15: 0.13 | N15: 1.07 | O15: 0.2040816327 | P15: 0.04081632653 | Q15: 0.09584775204 | R15: 3.513513514 | S15: 0.7027027027 | T15: 0.01149934903 | U15: 0.1073471011 | V15: 3066.321342 | W15: 0.425 | X15: 98 | Y15: 0.075 | Z15: 74 | AA15: 1.05 | AB15: 0.08 | AC15: 1.13 | AD15: 0.2040816327 | AE15: 0.04081632653 | AF15: 0.1086274523 | AG15: 3.513513514 | AH15: 0.7027027027 | AI15: 0.006899609417 | AJ15: 0.1155270617 | AK15: 3422.640428 | AL15: 0.475 | AM15: 98 | AN15: 0.025 | AO15: 74 | AP15: 1.18 | AQ15: 0.03 | AR15: 1.21 | AS15: 0.2040816327 | AT15: 0.04081632653 | AU15: 0.1214071526 | AV15: 3.513513514 | AW15: 0.7027027027 | AX15: 0.002299869806 | AY15: 0.1237070224 | AZ15: 3778.959515 | BA15: 0.5 | BB15: 98 | BC15: 0 | BD15: 74 | BE15: 1.25 | BF15: 0 | BG15: 1.25 | BH15: 0.2040816327 | BI15: 0.04081632653 | BJ15: 0.1277970027 | BK15: 3.513513514 | BL15: 0.7027027027 | BM15: 0 | BN15: 0.1277970027 | BO15: 3957.119058
A16: 11 | B16: 0.55 | C16: 70 | D16: 0.43 | E16: 4.285714286 | F16: 0.8571428571 | G16: 0.04064945405 | H16: 0.4125 | I16: 98 | J16: 0.1375 | K16: 74 | L16: 1.04 | M16: 0.14 | N16: 1.18 | O16: 0.2040816327 | P16: 0.04081632653 | Q16: 0.1054325272 | R16: 3.513513514 | S16: 0.7027027027 | T16: 0.01264928393 | U16: 0.1180818112 | V16: 3372.953476 | W16: 0.4675 | X16: 98 | Y16: 0.0825 | Z16: 74 | AA16: 1.17 | AB16: 0.08 | AC16: 1.25 | AD16: 0.2040816327 | AE16: 0.04081632653 | AF16: 0.1194901975 | AG16: 3.513513514 | AH16: 0.7027027027 | AI16: 0.007589570359 | AJ16: 0.1270797679 | AK16: 3764.904471 | AL16: 0.5225 | AM16: 98 | AN16: 0.0275 | AO16: 74 | AP16: 1.3 | AQ16: 0.03 | AR16: 1.33 | AS16: 0.2040816327 | AT16: 0.04081632653 | AU16: 0.1335478678 | AV16: 3.513513514 | AW16: 0.7027027027 | AX16: 0.002529856786 | AY16: 0.1360777246 | AZ16: 4156.855466 | BA16: 0.55 | BB16: 98 | BC16: 0 | BD16: 74 | BE16: 1.37 | BF16: 0 | BG16: 1.37 | BH16: 0.2040816327 | BI16: 0.04081632653 | BJ16: 0.140576703 | BK16: 3.513513514 | BL16: 0.7027027027 | BM16: 0 | BN16: 0.140576703 | BO16: 4352.830964
A17: 12 | B17: 0.6 | C17: 70 | D17: 0.47 | E17: 4.285714286 | F17: 0.8571428571 | G17: 0.04434485896 | H17: 0.45 | I17: 98 | J17: 0.15 | K17: 74 | L17: 1.12 | M17: 0.15 | N17: 1.27 | O17: 0.2040816327 | P17: 0.04081632653 | Q17: 0.1150173024 | R17: 3.513513514 | S17: 0.7027027027 | T17: 0.01379921883 | U17: 0.1288165213 | V17: 3679.58561 | W17: 0.51 | X17: 98 | Y17: 0.09 | Z17: 74 | AA17: 1.28 | AB17: 0.09 | AC17: 1.37 | AD17: 0.2040816327 | AE17: 0.04081632653 | AF17: 0.1303529428 | AG17: 3.513513514 | AH17: 0.7027027027 | AI17: 0.0082795313 | AJ17: 0.1386324741 | AK17: 4107.168514 | AL17: 0.57 | AM17: 98 | AN17: 0.03 | AO17: 74 | AP17: 1.42 | AQ17: 0.03 | AR17: 1.45 | AS17: 0.2040816327 | AT17: 0.04081632653 | AU17: 0.1456885831 | AV17: 3.513513514 | AW17: 0.7027027027 | AX17: 0.002759843767 | AY17: 0.1484484269 | AZ17: 4534.751418 | BA17: 0.6 | BB17: 98 | BC17: 0 | BD17: 74 | BE17: 1.5 | BF17: 0 | BG17: 1.5 | BH17: 0.2040816327 | BI17: 0.04081632653 | BJ17: 0.1533564033 | BK17: 3.513513514 | BL17: 0.7027027027 | BM17: 0 | BN17: 0.1533564033 | BO17: 4748.542869
A18: 13 | B18: 0.65 | C18: 70 | D18: 0.51 | E18: 4.285714286 | F18: 0.8571428571 | G18: 0.04804026388 | H18: 0.4875 | I18: 98 | J18: 0.1625 | K18: 74 | L18: 1.22 | M18: 0.16 | N18: 1.38 | O18: 0.2040816327 | P18: 0.04081632653 | Q18: 0.1246020776 | R18: 3.513513514 | S18: 0.7027027027 | T18: 0.01494915374 | U18: 0.1395512314 | V18: 3986.217745 | W18: 0.5525 | X18: 98 | Y18: 0.0975 | Z18: 74 | AA18: 1.37 | AB18: 0.1 | AC18: 1.47 | AD18: 0.2040816327 | AE18: 0.04081632653 | AF18: 0.141215688 | AG18: 3.513513514 | AH18: 0.7027027027 | AI18: 0.008969492242 | AJ18: 0.1501851802 | AK18: 4449.432557 | AL18: 0.6175 | AM18: 98 | AN18: 0.0325 | AO18: 74 | AP18: 1.55 | AQ18: 0.03 | AR18: 1.58 | AS18: 0.2040816327 | AT18: 0.04081632653 | AU18: 0.1578292984 | AV18: 3.513513514 | AW18: 0.7027027027 | AX18: 0.002989830747 | AY18: 0.1608191291 | AZ18: 4912.647369 | BA18: 0.65 | BB18: 98 | BC18: 0 | BD18: 74 | BE18: 1.63 | BF18: 0 | BG18: 1.63 | BH18: 0.2040816327 | BI18: 0.04081632653 | BJ18: 0.1661361035 | BK18: 3.513513514 | BL18: 0.7027027027 | BM18: 0 | BN18: 0.1661361035 | BO18: 5144.254775
A19: 14 | B19: 0.7 | C19: 70 | D19: 0.55 | E19: 4.285714286 | F19: 0.8571428571 | G19: 0.05173566879 | H19: 0.525 | I19: 98 | J19: 0.175 | K19: 74 | L19: 1.3 | M19: 0.18 | N19: 1.48 | O19: 0.2040816327 | P19: 0.04081632653 | Q19: 0.1341868528 | R19: 3.513513514 | S19: 0.7027027027 | T19: 0.01609908864 | U19: 0.1502859415 | V19: 4292.849879 | W19: 0.595 | X19: 98 | Y19: 0.105 | Z19: 74 | AA19: 1.48 | AB19: 0.1 | AC19: 1.58 | AD19: 0.2040816327 | AE19: 0.04081632653 | AF19: 0.1520784332 | AG19: 3.513513514 | AH19: 0.7027027027 | AI19: 0.009659453184 | AJ19: 0.1617378864 | AK19: 4791.6966 | AL19: 0.665 | AM19: 98 | AN19: 0.035 | AO19: 74 | AP19: 1.66 | AQ19: 0.03 | AR19: 1.69 | AS19: 0.2040816327 | AT19: 0.04081632653 | AU19: 0.1699700136 | AV19: 3.513513514 | AW19: 0.7027027027 | AX19: 0.003219817728 | AY19: 0.1731898313 | AZ19: =(AY19-$G19)*43560 -> 5290.543321 | BA19: 0.7 | BB19: 98 | BC19: 0 | BD19: 74 | BE19: 1.74 | BF19: 0 | BG19: 1.74 | BH19: 0.2040816327 | BI19: 0.04081632653 | BJ19: 0.1789158038 | BK19: 3.513513514 | BL19: 0.7027027027 | BM19: 0 | BN19: 0.1789158038 | BO19: =(BN19-$G19)*43560 -> 5539.966681
A20: 15 | B20: 0.75 | C20: 70 | D20: 0.59 | E20: 4.285714286 | F20: 0.8571428571 | G20: 0.0554310737 | H20: 0.5625 | I20: 98 | J20: 0.1875 | K20: 74 | L20: 1.41 | M20: 0.19 | N20: 1.6 | O20: 0.2040816327 | P20: 0.04081632653 | Q20: 0.1437716281 | R20: 3.513513514 | S20: 0.7027027027 | T20: 0.01724902354 | U20: 0.1610206516 | V20: 4599.482013 | W20: 0.6375 | X20: 98 | Y20: 0.1125 | Z20: 74 | AA20: 1.6 | AB20: 0.12 | AC20: 1.72 | AD20: 0.2040816327 | AE20: 0.04081632653 | AF20: 0.1629411785 | AG20: 3.513513514 | AH20: 0.7027027027 | AI20: 0.01034941413 | AJ20: 0.1732905926 | AK20: 5133.960643 | AL20: 0.7125 | AM20: 98 | AN20: 0.0375 | AO20: 74 | AP20: 1.77 | AQ20: 0.04 | AR20: 1.81 | AS20: 0.2040816327 | AT20: 0.04081632653 | AU20: 0.1821107289 | AV20: 3.513513514 | AW20: 0.7027027027 | AX20: 0.003449804709 | AY20: 0.1855605336 | AZ20: 5668.439272 | BA20: 0.75 | BB20: 98 | BC20: 0 | BD20: 74 | BE20: 1.87 | BF20: 0 | BG20: 1.87 | BH20: 0.2040816327 | BI20: 0.04081632653 | BJ20: 0.1916955041 | BK20: 3.513513514 | BL20: 0.7027027027 | BM20: 0 | BN20: 0.1916955041 | BO20: 5935.678587
A21: 16 | B21: 0.8 | C21: 70 | D21: 0.63 | E21: 4.285714286 | F21: 0.8571428571 | G21: 0.05912647862 | H21: 0.6 | I21: 98 | J21: 0.2 | K21: 74 | L21: 1.5 | M21: 0.2 | N21: 1.7 | O21: 0.2040816327 | P21: 0.04081632653 | Q21: 0.1533564033 | R21: 3.513513514 | S21: 0.7027027027 | T21: 0.01839895845 | U21: 0.1717553617 | V21: 4906.114147 | W21: 0.68 | X21: 98 | Y21: 0.12 | Z21: 74 | AA21: 1.69 | AB21: 0.12 | AC21: 1.81 | AD21: 0.2040816327 | AE21: 0.04081632653 | AF21: 0.1738039237 | AG21: 3.513513514 | AH21: 0.7027027027 | AI21: 0.01103937507 | AJ21: 0.1848432988 | AK21: 5476.224685 | AL21: 0.76 | AM21: 98 | AN21: 0.04 | AO21: 74 | AP21: 1.91 | AQ21: 0.04 | AR21: 1.95 | AS21: 0.2040816327 | AT21: 0.04081632653 | AU21: 0.1942514441 | AV21: 3.513513514 | AW21: 0.7027027027 | AX21: 0.003679791689 | AY21: 0.1979312358 | AZ21: 6046.335224 | BA21: 0.8 | BB21: 98 | BC21: 0 | BD21: 74 | BE21: 2 | BF21: 0 | BG21: 2 | BH21: 0.2040816327 | BI21: 0.04081632653 | BJ21: 0.2044752043 | BK21: 3.513513514 | BL21: 0.7027027027 | BM21: 0 | BN21: 0.2044752043 | BO21: 6331.390493
A22: 17 | B22: 0.85 | C22: 70 | D22: 0.67 | E22: 4.285714286 | F22: 0.8571428571 | G22: 0.06282188353 | H22: 0.6375 | I22: 98 | J22: 0.2125 | K22: 74 | L22: 1.6 | M22: 0.21 | N22: 1.81 | O22: 0.2040816327 | P22: 0.04081632653 | Q22: 0.1629411785 | R22: 3.513513514 | S22: 0.7027027027 | T22: 0.01954889335 | U22: 0.1824900718 | V22: 5212.746281 | W22: 0.7225 | X22: 98 | Y22: 0.1275 | Z22: 74 | AA22: 1.81 | AB22: 0.13 | AC22: 1.94 | AD22: 0.2040816327 | AE22: 0.04081632653 | AF22: 0.1846666689 | AG22: 3.513513514 | AH22: 0.7027027027 | AI22: 0.01172933601 | AJ22: 0.1963960049 | AK22: 5818.488728 | AL22: 0.8075 | AM22: 98 | AN22: 0.0425 | AO22: 74 | AP22: 2.02 | AQ22: 0.05 | AR22: 2.07 | AS22: 0.2040816327 | AT22: 0.04081632653 | AU22: 0.2063921594 | AV22: 3.513513514 | AW22: 0.7027027027 | AX22: 0.00390977867 | AY22: 0.2103019381 | AZ22: 6424.231175 | BA22: 0.85 | BB22: 98 | BC22: 0 | BD22: 74 | BE22: 2.11 | BF22: 0 | BG22: 2.11 | BH22: 0.2040816327 | BI22: 0.04081632653 | BJ22: 0.2172549046 | BK22: 3.513513514 | BL22: 0.7027027027 | BM22: 0 | BN22: 0.2172549046 | BO22: 6727.102398
A23: 18 | B23: 0.9 | C23: 70 | D23: 0.71 | E23: 4.285714286 | F23: 0.8571428571 | G23: 0.06651728844 | H23: 0.675 | I23: 98 | J23: 0.225 | K23: 74 | L23: 1.68 | M23: 0.23 | N23: 1.91 | O23: 0.2040816327 | P23: 0.04081632653 | Q23: 0.1725259537 | R23: 3.513513514 | S23: 0.7027027027 | T23: 0.02069882825 | U23: 0.1932247819 | V23: 5519.378416 | W23: 0.765 | X23: 98 | Y23: 0.135 | Z23: 74 | AA23: 1.92 | AB23: 0.14 | AC23: 2.06 | AD23: 0.2040816327 | AE23: 0.04081632653 | AF23: 0.1955294142 | AG23: 3.513513514 | AH23: 0.7027027027 | AI23: 0.01241929695 | AJ23: 0.2079487111 | AK23: 6160.752771 | AL23: 0.855 | AM23: 98 | AN23: 0.045 | AO23: 74 | AP23: 2.13 | AQ23: 0.05 | AR23: 2.18 | AS23: 0.2040816327 | AT23: 0.04081632653 | AU23: 0.2185328746 | AV23: 3.513513514 | AW23: 0.7027027027 | AX23: 0.00413976565 | AY23: 0.2226726403 | AZ23: 6802.127126 | BA23: 0.9 | BB23: 98 | BC23: 0 | BD23: 74 | BE23: 2.24 | BF23: 0 | BG23: 2.24 | BH23: 0.2040816327 | BI23: 0.04081632653 | BJ23: 0.2300346049 | BK23: 3.513513514 | BL23: 0.7027027027 | BM23: 0 | BN23: 0.2300346049 | BO23: 7122.814304
A24: 19 | B24: 0.95 | C24: 70 | D24: 0.74 | E24: 4.285714286 | F24: 0.8571428571 | G24: 0.07021269336 | H24: 0.7125 | I24: 98 | J24: 0.2375 | K24: 74 | L24: 1.77 | M24: 0.24 | N24: 2.01 | O24: 0.2040816327 | P24: 0.04081632653 | Q24: 0.1821107289 | R24: 3.513513514 | S24: 0.7027027027 | T24: 0.02184876315 | U24: 0.203959492 | V24: 5826.01055 | W24: 0.8075 | X24: 98 | Y24: 0.1425 | Z24: 74 | AA24: 2.02 | AB24: 0.14 | AC24: 2.16 | AD24: 0.2040816327 | AE24: 0.04081632653 | AF24: 0.2063921594 | AG24: 3.513513514 | AH24: 0.7027027027 | AI24: 0.01310925789 | AJ24: 0.2195014173 | AK24: 6503.016814 | AL24: 0.9025 | AM24: 98 | AN24: 0.0475 | AO24: 74 | AP24: 2.24 | AQ24: 0.05 | AR24: 2.29 | AS24: 0.2040816327 | AT24: 0.04081632653 | AU24: 0.2306735899 | AV24: 3.513513514 | AW24: 0.7027027027 | AX24: 0.004369752631 | AY24: 0.2350433425 | AZ24: 7180.023078 | BA24: 0.95 | BB24: 98 | BC24: 0 | BD24: 74 | BE24: 2.36 | BF24: 0 | BG24: 2.36 | BH24: 0.2040816327 | BI24: 0.04081632653 | BJ24: 0.2428143052 | BK24: 3.513513514 | BL24: 0.7027027027 | BM24: 0 | BN24: 0.2428143052 | BO24: 7518.52621
A27: %IP VS VOL DIFF TRENDLINES | D27: FINAL REQD VOLUME EQUATION | H27: SCENARIO # | I27: LOT SIZE (SQ.FT) | J27: LOT SIZE (AC) | K27: DEPTH OF TANK (FT) | L27: ORIFICE SIZE (in) | M27: HEAD (FT) | N27: FLOW (CFS) | O27: CALCULATED FOOTPRINT (SQ.FT) | P27: ACCEPTABLE DEPTH (FT) | Q27: FOOTPRINT BASED ON ACCEPTABLE DEPTH (SQ.FT) | R27: REVISED FOOTPRINT (SQ.FT) | S27: %OF AREA FOR TANK | AD27: CALCULATED FOOTPRINT (SQ.FT) | AE27: REVISED FOOTPRINT (SQ.FT) | AF27: %OF AREA FOR TANK | AS27: CALCULATED FOOTPRINT (SQ.FT) | AT27: REVISED FOOTPRINT (SQ.FT) | AU27: %OF AREA FOR TANK | BH27: CALCULATED FOOTPRINT (SQ.FT) | BI27: REVISED FOOTPRINT (SQ.FT) | BJ27: %OF AREA FOR TANK
A28: %IP | B28: VOL | D28: LOT | E28: 0.95 | H28: 1 | I28: =J28*43560 -> 2178 | J28: =B6 -> 0.05 | K28: 2.326153294 | L28: 1 | M28: =K28-(L28/12) -> 2.242819961 | N28: =0.6*((PI()*(L28/12)^2)/4)*(SQRT(2*32.2*M28)) -> 0.0393295321 | O28: ='DATA ENTRY SHEET'!$G$20/$K28 -> 850.7607839 | P28: =IF(K28<1,1,IF(K28<3,ROUNDUP(K28/0.5,0)*0.5,3)) -> 2.5 | Q28: ='DATA ENTRY SHEET'!$G$20/$P28 -> 791.6 | R28: =MAX(O28,Q28) -> 850.7607839 | S28: =R28/$I28 -> 0.3906156033 | AD28: =AK6/$K28 -> 147.1373549 | AE28: =AK6/$P28 -> 136.9056171 | AF28: =AE28/$I28 -> 0.06285841007 | AS28: =AZ6/$K28 -> 162.4553087 | AT28: =AZ6/$P28 -> 151.1583806 | AU28: =AT28/$I28 -> 0.0694023786 | BH28: =BO6/$K28 -> 170.1142856 | BI28: =BO6/$P28 -> 158.2847623 | BJ28: =BI28/$I28 -> 0.07267436286
A29: 75 | B29: 6132.6 | D29: %IP | E29: 82.5 | H29: 2 | I29: =J29*43560 -> 4356 | J29: =B7 -> 0.1 | K29: 9.151799427 | L29: 1 | M29: =K29-(L29/12) -> 9.068466093 | N29: =0.6*((PI()*(L29/12)^2)/4)*(SQRT(2*32.2*M29)) -> 0.07908397499 | O29: ='DATA ENTRY SHEET'!$G$20/$K29 -> 216.2416272 | P29: =IF(K29<1,1,IF(K29<3,ROUNDUP(K29/0.5,0)*0.5,3)) -> 3 | Q29: ='DATA ENTRY SHEET'!$G$20/$P29 -> 659.6666667 | R29: =MAX(O29,Q29) -> 659.6666667 | S29: 0.1514386287 | AD29: =AK7/$K29 -> 74.79710314 | AE29: =AK7/$P29 -> 228.1760286 | AF29: =AE29/$I29 -> 0.05238200839 | AS29: =AZ7/$K29 -> 82.58396712 | AT29: =AZ7/$P29 -> 251.9306343 | AU29: =AT29/$I29 -> 0.0578353155 | BH29: =BO7/$K29 -> 86.47739911 | BI29: =BO7/$P29 -> 263.8079372 | BJ29: =BI29/$I29 -> 0.06056196905
A30: 85 | B30: 6845.3 | D30: VOL | E30: =((71.264*E29)+787.84)*E28 -> 6333.764 | H30: 3 | I30: 6534 | J30: 0.15 | K30: 4.246908883 | L30: 1.5 | M30: 4.121908883 | N30: 0.1199646483 | O30: ='DATA ENTRY SHEET'!$G$20/$K30 -> 465.9859806 | P30: 3 | Q30: ='DATA ENTRY SHEET'!$G$20/$P30 -> 659.6666667 | R30: 659.6666667 | S30: 0.1009590858 | AD30: 241.7739954 | AE30: 342.2640428 | AF30: 0.05238200839 | AS30: 266.9442377 | AT30: 377.8959515 | AU30: 0.0578353155 | BH30: 279.5293589 | BI30: 395.7119058 | BJ30: 0.06056196905
A31: 95 | B31: 7557.9 | H31: 4 | I31: 8712 | J31: 0.2 | K31: 7.450108322 | L31: 1.5 | M31: 7.325108322 | N31: 0.1599230696 | O31: ='DATA ENTRY SHEET'!$G$20/$K31 -> 265.6337216 | P31: 3 | Q31: ='DATA ENTRY SHEET'!$G$20/$P31 -> 659.6666667 | R31: 659.6666667 | S31: 0.07571931436 | AD31: 183.7632571 | AE31: 456.3520571 | AF31: 0.05238200839 | AS31: 202.8942051 | AT31: 503.8612686 | AU31: 0.0578353155 | BH31: 212.4596791 | BI31: 527.6158744 | BJ31: 0.06056196905
A32: 100 | B32: 7914.2 | H32: 5 | I32: 10890 | J32: 0.25 | K32: 3.783430672 | L32: 2 | M32: 3.616764005 | N32: 0.1997752352 | O32: ='DATA ENTRY SHEET'!$G$20/$K32 -> 523.0702428 | P32: 3 | Q32: ='DATA ENTRY SHEET'!$G$20/$P32 -> 659.6666667 | R32: 659.6666667 | S32: 0.06057545148 | AD32: 452.3196967 | AE32: 570.4400714 | AF32: 0.05238200839 | AS32: 499.4091134 | AT32: 629.8265858 | AU32: 0.0578353155 | BH32: 522.9538217 | BI32: 659.519843 | BJ32: 0.06056196905
H33: 6 | I33: 13068 | J33: 0.3 | K33: 5.373082312 | L33: 2 | M33: 5.206415645 | N33: 0.2396905891 | O33: ='DATA ENTRY SHEET'!$G$20/$K33 -> 368.3174545 | P33: 3 | Q33: ='DATA ENTRY SHEET'!$G$20/$P33 -> 659.6666667 | R33: 659.6666667 | S33: 0.0504795429 | AD33: 382.1985478 | AE33: 684.5280857 | AF33: 0.05238200839 | AS33: 421.9878977 | AT33: 755.7919029 | AU33: 0.0578353155 | BH33: 441.8825726 | BI33: 791.4238116 | BJ33: 0.06056196905
H34: 7 | I34: 15246 | J34: 0.35 | K34: 3.117766559 | L34: 2.5 | M34: 2.909433225 | N34: 0.2799663193 | O34: ='DATA ENTRY SHEET'!$G$20/$K34 -> 634.7492549 | P34: 3 | Q34: ='DATA ENTRY SHEET'!$G$20/$P34 -> 659.6666667 | R34: 659.6666667 | S34: 0.04326817963 | AD34: 768.4501885 | AE34: 798.6160999 | AF34: 0.05238200839 | AS34: 848.4508415 | AT34: 881.7572201 | AU34: 0.0578353155 | BH34: 888.4511679 | BI34: 923.3277802 | BJ34: 0.06056196905
H35: 8 | I35: 17424 | J35: 0.4 | K35: 4.007922991 | L35: 2.5 | M35: 3.799589658 | N35: 0.3199410304 | O35: ='DATA ENTRY SHEET'!$G$20/$K35 -> 493.7719623 | P35: 3 | Q35: ='DATA ENTRY SHEET'!$G$20/$P35 -> 659.6666667 | R35: 659.6666667 | S35: 0.03785965718 | AD35: 683.1748885 | AE35: 912.7041142 | AF35: 0.05238200839 | AS35: 754.2978292 | AT35: 1007.722537 | AU35: 0.0578353155 | BH35: 789.8592995 | BI35: 1055.231749 | BJ35: 0.06056196905
H36: 9 | I36: 19602 | J36: 0.45 | K36: 4.753550295 | L36: 2.5 | M36: 4.545216962 | N36: 0.3499281655 | O36: ='DATA ENTRY SHEET'!$G$20/$K36 -> 416.3204084 | P36: 3 | Q36: ='DATA ENTRY SHEET'!$G$20/$P36 -> 659.6666667 | R36: 659.6666667 | S36: 0.0336530286 | AD36: 648.0159448 | AE36: 1026.792129 | AF36: 0.05238200839 | AS36: 715.4786112 | AT36: 1133.687854 | AU36: 0.0578353155 | BH36: 749.2099444 | BI36: 1187.135717 | BJ36: 0.06056196905
H37: 10 | I37: 21780 | J37: 0.5 | K37: 2.971404706 | L37: 3 | M37: 2.721404706 | N37: 0.3899066556 | O37: ='DATA ENTRY SHEET'!$G$20/$K37 -> 666.0149646 | P37: 3 | Q37: ='DATA ENTRY SHEET'!$G$20/$P37 -> 659.6666667 | R37: 666.0149646 | S37: 0.03057919947 | AD37: 1151.859395 | AE37: 1140.880143 | AF37: 0.05238200839 | AS37: 1271.775436 | AT37: 1259.653172 | AU37: 0.0578353155 | BH37: 1331.733456 | BI37: 1319.039686 | BJ37: 0.06056196905
H38: 11 | I38: 23958 | J38: 0.55 | K38: 3.55425951 | L38: 3 | M38: 3.30425951 | N38: 0.4296364873 | O38: ='DATA ENTRY SHEET'!$G$20/$K38 -> 556.7967095 | P38: 3 | Q38: ='DATA ENTRY SHEET'!$G$20/$P38 -> 659.6666667 | R38: 659.6666667 | S38: 0.02753429613 | AD38: 1059.265498 | AE38: 1254.968157 | AF38: 0.05238200839 | AS38: 1169.541913 | AT38: 1385.618489 | AU38: 0.0578353155 | BH38: 1224.68012 | BI38: 1450.943655 | BJ38: 0.06056196905
H39: 12 | I39: 26136 | J39: 0.6 | K39: 4.195782334 | L39: 3 | M39: 3.945782334 | N39: 0.4694946468 | O39: ='DATA ENTRY SHEET'!$G$20/$K39 -> 471.6641242 | P39: 3 | Q39: ='DATA ENTRY SHEET'!$G$20/$P39 -> 659.6666667 | R39: 659.6666667 | S39: 0.02523977145 | AD39: 978.8802629 | AE39: 1369.056171 | AF39: 0.05238200839 | AS39: 1080.788053 | AT39: 1511.583806 | AU39: 0.0578353155 | BH39: 1131.741947 | BI39: 1582.847623 | BJ39: 0.06056196905
H40: 13 | I40: 28314 | J40: 0.65 | K40: 2.804592288 | L40: 3.5 | M40: 2.512925621 | N40: 0.5099733473 | O40: ='DATA ENTRY SHEET'!$G$20/$K40 -> 705.6284111 | P40: 3 | Q40: ='DATA ENTRY SHEET'!$G$20/$P40 -> 659.6666667 | R40: 705.6284111 | S40: 0.02492153744 | AD40: 1586.481064 | AE40: 1483.144186 | AF40: 0.05238200839 | AS40: 1751.644041 | AT40: 1637.549123 | AU40: 0.0578353155 | BH40: 1834.22553 | BI40: 1714.751592 | BJ40: 0.06056196905
H41: 14 | I41: 30492 | J41: 0.7 | K41: 3.213899133 | L41: 3.5 | M41: 2.922232467 | N41: 0.5499396625 | O41: ='DATA ENTRY SHEET'!$G$20/$K41 -> 615.7629465 | P41: 3 | Q41: ='DATA ENTRY SHEET'!$G$20/$P41 -> 659.6666667 | R41: 659.6666667 | S41: 0.02163408982 | AD41: 1490.929367 | AE41: 1597.2322 | AF41: 0.05238200839 | AS41: 1646.144792 | AT41: 1763.51444 | AU41: 0.0578353155 | BH41: 1723.752505 | BI41: 1846.65556 | BJ41: 0.06056196905
H42: 15 | I42: 32670 | J42: 0.75 | K42: 3.653851394 | L42: 3.5 | M42: 3.362184728 | N42: 0.589886487 | O42: ='DATA ENTRY SHEET'!$G$20/$K42 -> 541.6202758 | P42: 3 | Q42: ='DATA ENTRY SHEET'!$G$20/$P42 -> 659.6666667 | R42: 659.6666667 | S42: 0.02019181716 | AD42: 1405.08195 | AE42: 1711.320214 | AF42: 0.05238200839 | AS42: 1551.360102 | AT42: 1889.479757 | AU42: 0.0578353155 | BH42: 1624.499178 | BI42: 1978.559529 | BJ42: 0.06056196905
H43: 16 | I43: 34848 | J43: 0.8 | K43: 2.57937215 | L43: 4 | M43: 2.246038817 | N43: 0.6297239121 | O43: ='DATA ENTRY SHEET'!$G$20/$K43 -> 767.2409736 | P43: 3 | Q43: ='DATA ENTRY SHEET'!$G$20/$P43 -> 659.6666667 | R43: 767.2409736 | S43: 0.02201678643 | AD43: 2123.084365 | AE43: 1825.408228 | AF43: 0.05238200839 | AS43: 2344.11123 | AT43: 2015.445075 | AU43: 0.0578353155 | BH43: 2454.624662 | BI43: 2110.463498 | BJ43: 0.06056196905
H44: 17 | I44: 37026 | J44: 0.85 | K44: 2.870933311 | L44: 4 | M44: 2.537599978 | N44: 0.6693497984 | O44: ='DATA ENTRY SHEET'!$G$20/$K44 -> 689.3228737 | P44: 3 | Q44: ='DATA ENTRY SHEET'!$G$20/$P44 -> 659.6666667 | R44: 689.3228737 | S44: 0.01861726553 | AD44: 2026.688919 | AE44: 1939.496243 | AF44: 0.05238200839 | AS44: 2237.680391 | AT44: 2141.410392 | AU44: 0.0578353155 | BH44: 2343.176128 | BI44: 2242.367466 | BJ44: 0.06056196905
H45: 18 | I45: 39204 | J45: 0.9 | K45: 3.188402444 | L45: 4 | M45: 2.855069111 | N45: 0.7099861367 | O45: ='DATA ENTRY SHEET'!$G$20/$K45 -> 620.6870164 | P45: 3 | Q45: ='DATA ENTRY SHEET'!$G$20/$P45 -> 659.6666667 | R45: 659.6666667 | S45: 0.0168265143 | AD45: 1932.238128 | AE45: 2053.584257 | AF45: 0.05238200839 | AS45: 2133.396661 | AT45: 2267.375709 | AU45: 0.0578353155 | BH45: 2233.975927 | BI45: 2374.271435 | BJ45: 0.06056196905
H46: 19 | I46: 41382 | J46: 0.95 | K46: 3.434712299 | L46: 4 | M46: 3.101378966 | N46: 0.7399782836 | O46: ='DATA ENTRY SHEET'!$G$20/$K46 -> 576.1763512 | P46: 3 | Q46: ='DATA ENTRY SHEET'!$G$20/$P46 -> 659.6666667 | R46: 659.6666667 | S46: 0.01594090829 | AD46: 1893.322132 | AE46: 2167.672271 | AF46: 0.05238200839 | AS46: 2090.429256 | AT46: 2393.341026 | AU46: 0.0578353155 | BH46: 2188.982819 | BI46: 2506.175403 | BJ46: 0.06056196905
A69: %CREDIT FOR GREEN INFRASTRUCTURE
A70: TYPE | B70: %CREDIT
A71: Porous Pavement | B71: 0.25
A72: Green Roof | B72: 0.5
A73: Blue Roof | B73: 0.6
A74: Permeable Pavers | B74: 0.25
A75: Bioretention | B75: 0.5
